lending/lending_fUSD_20251111
["ID","MTS","AMOUNT","RATE_DAILY","PERIOD"]
[393582764,1762819843462,-500.0,0.00018948,2]
[393582765,1762819843472,-500.0,0.00018948,2]
[393582766,1762819843481,-1518.0,0.00018955,2]
[393582767,1762819843491,-1518.0,0.00018959,2]
[393582768,1762819843500,-173.90438072,0.00018973,2]
[393582769,1762819843510,-246.2,0.00018974,2]
[393582770,1762819843519,-300.0,0.00018999,2]
[393582771,1762819843528,-420.52432592,0.00019,2]
[393582772,1762819843538,-300.0,0.00019,2]
[393582773,1762819843548,-62170.37012729,0.00019,2]
[393582774,1762819843557,-1518.0,0.00019031,2]
[393582775,1762819843567,-1518.0,0.00019036,2]
[393582776,1762819843576,-1518.0,0.00019067,2]
[393582777,1762819843585,-500.0,0.00019085,2]
[393582778,1762819843595,-500.0,0.00019085,2]
[393582779,1762819843604,-500.0,0.00019085,2]
[393582780,1762819843613,-287.61899177,0.0001913,2]
[393582781,1762819843623,-334.5472959,0.00019131,2]
[393582782,1762819843632,-2326.0,0.00019178,2]
[393582783,1762819843642,-151.0,0.00019178,2]
[393582784,1762819843652,-151.0,0.00019178,2]
[393582785,1762819843661,-151.0,0.00019178,2]
[393582786,1762819843670,-500.0,0.00019222,2]
[393582787,1762819843679,-500.0,0.00019222,2]
[393582788,1762819843690,-274.44932655,0.00019222,2]
[393582789,1762819843699,-2666.19972782,0.00019267,2]
[393582790,1762819843708,-1680.0,0.00019272,2]
[393582791,1762819843718,-15143.94329065,0.00019277,2]
[393582792,1762819843727,-166.66,0.00019339,2]
[393582793,1762819843737,-500.0,0.00019359,2]
[393582794,1762819843746,-500.0,0.00019359,2]
[393582795,1762819843755,-500.0,0.00019359,2]
[393582796,1762819843765,-640.24385345,0.00019406,2]
[393582797,1762819843775,-1000.0,0.00019438,2]
[393582798,1762819843784,-500.0,0.00019496,2]
[393582799,1762819843793,-500.0,0.00019496,2]
[393582800,1762819843804,-4817.58568892,0.000195,7]
[393582801,1762819843813,-287.26530748,0.0001959,2]
[393582802,1762819843823,-500.0,0.00019633,2]
[393582803,1762819843832,-500.0,0.00019633,2]
[393582804,1762819843841,-175.98,0.00019765,2]
[393582805,1762819843850,-500.0,0.0001977,2]
[393582806,1762819843859,-500.0,0.0001977,2]
[393582807,1762819843870,-300.0,0.00019808,2]
[393582808,1762819843880,-1000.0,0.00019905,2]
[393582809,1762819843890,-345.10169917,0.00019907,2]
[393582810,1762819843899,-377.60868666,0.00019907,2]
[393582811,1762819843908,-166.67,0.00019909,2]
[393582812,1762819843917,-5474.0080757,0.00019919,2]
[393582813,1762819843927,-7499.5026175,0.00019919,2]
[393582814,1762819843937,-322.83957711,0.00019954,2]
[393582815,1762819843947,-1025.91357383,0.0002,2]
[393582816,1762819843956,-1458.41650307,0.0002,5]
[393582817,1762819843966,-955.93075834,0.0002,7]
[393582818,1762819843975,-406.94542744,0.0002,7]
[393582819,1762819843984,-229.21,0.0002,2]
[393582820,1762819843994,-150.05,0.0002,2]
[393582821,1762819844003,-228.35350495,0.0002,2]
[393582822,1762819844012,-1000.0,0.0002,7]
[393582823,1762819844021,-154.14,0.00020056,2]
[393582824,1762819844030,-2666.19972782,0.00020057,2]
[393582825,1762819844039,-15143.94329065,0.00020072,2]
[393582826,1762819844050,-450.207254,0.00020072,7]
[393582827,1762819844059,-1000.0,0.00020116,2]
[393582828,1762819844068,-283.616,0.00020162,2]
[393582829,1762819844078,-150.101,0.00020162,2]
[393582830,1762819844088,-159.989,0.00020162,2]
[393582831,1762819844097,-3426.0,0.00020162,2]
[393582832,1762819844106,-608.0,0.00020162,2]
[393582833,1762819844115,-1316.0,0.00020162,2]
[393582834,1762819844124,-829.0,0.00020162,2]
[393582835,1762819844138,-1597.0,0.00020162,2]
[393582836,1762819844147,-813.0,0.00020162,2]
[393582837,1762819844156,-1274.0,0.00020162,2]
[393582838,1762819844166,-151.0,0.00020162,7]
[393582839,1762819844175,-151.0,0.00020162,7]
[393582840,1762819844184,-151.0,0.00020162,7]
[393582841,1762819844194,-151.0,0.00020162,7]
[393582842,1762819844203,-857.16,0.00020187,2]
[393582843,1762819844213,-101132.0504118,0.00020282,2]
[393582844,1762819844222,-166.66,0.00020297,2]
[393582845,1762819844232,-864.0360473,0.00020317,2]
[393582846,1762819844241,-296.65985192,0.00020323,2]
[393582847,1762819844251,-2307.6596259,0.00020378,2]
[393582848,1762819844260,-1221.4162985,0.0002042,2]
[393582849,1762819844270,-1673.36522,0.0002042,2]
[393582850,1762819844279,-169.0101273,0.00020461,2]
[393582851,1762819844289,-478.32096809,0.00020465,2]
[393582852,1762819844300,-298.26089446,0.00020499,2]
[393582853,1762819844310,-346.92554585,0.000205,2]
[393582854,1762819844319,-1000.0,0.00020547,2]
[393582855,1762819844329,-151.0,0.00020548,7]
[393582856,1762819844339,-151.0,0.00020548,7]
[393582857,1762819844349,-297.891577,0.00020548,7]
[393582858,1762819844359,-6479.0,0.00020569,2]
[393582859,1762819844369,-6662.0,0.00020569,2]
[393582860,1762819844377,-2142.0,0.00020569,2]
[393582861,1762819844386,-558.0,0.00020569,2]
[393582862,1762819844394,-2000.0,0.000207,2]
[393582863,1762819844402,-171.69,0.00020708,2]
[393582864,1762819844411,-500.0,0.00020729,2]
[393582865,1762819844419,-22565.6106045,0.00020792,2]
[393582866,1762819844428,-1000.0,0.00020795,2]
[393582867,1762819844437,-306.73709461,0.0002082,2]
[393582868,1762819844445,-192.7925016,0.00020834,2]
[393582869,1762819844454,-2666.19972782,0.00020848,2]
[393582870,1762819844464,-15143.94329065,0.00020867,2]
[393582871,1762819844474,-514.9084619,0.00020909,2]
[393582872,1762819844484,-10845.37217229,0.00021,2]
[393582873,1762819844494,-1182.37184058,0.00021,2]
[393582874,1762819844504,-195.1671748,0.00021,2]
[393582875,1762819844514,-57.20918202,0.00021,2]
[393582889,1762819846668,-295.6458008,0.00018,2]
[393582925,1762819847393,-154.5614532,0.00018,2]
[393582926,1762819847404,-450.207254,0.00018,2]
[393582927,1762819847413,-102.05576769,0.00018,2]
[393582928,1762819847424,-348.15148631,0.00018,2]
[393582929,1762819847433,-450.207254,0.00018,2]
[393582930,1762819847442,-450.207254,0.00018,2]
[393582931,1762819847452,-450.207254,0.00018,2]
[393582932,1762819847461,-151.0,0.00018263,2]
[393582933,1762819847470,-450.207254,0.00020072,7]
[393582934,1762819847479,-450.207254,0.00020072,7]
[393582935,1762819847488,-450.207254,0.00020072,7]
[393582936,1762819847498,-292.79081798,0.00021,2]
[393582937,1762819847507,-151.0,0.00021,7]
[393582938,1762819847516,-246.2,0.00021083,2]
[393582939,1762819847530,-2351.0,0.00021141,2]
[393582940,1762819847540,-340.66331476,0.000214,2]
[393582941,1762819847549,-3113.00996234,0.000214,2]
[393582943,1762819847559,-1180.88532806,0.000215,2]
[393582946,1762819847575,-598.44994,0.000215,2]
[393582948,1762819847587,-369.62798886,0.000215,2]
[393582960,1762819849415,150.0,0.00030136,120]
[393582961,1762819873031,150.0,0.00030136,120]
[393582962,1762819893407,150.0,0.00030136,120]
[393582967,1762820042922,-300.0,0.00017574,2]
[393582968,1762820042948,-500.0,0.00017575,2]
[393582969,1762820042970,-213.32141519,0.00017575,2]
[393582970,1762820042993,-288.57635321,0.00017575,2]
[393582971,1762820043023,-500.0,0.00017575,2]
[393582972,1762820043051,-198.1022316,0.00017575,2]
[393582973,1762820044573,-360.4740584,0.00017575,2]
[393582974,1762820044601,-336.0,0.00017575,2]
[393582975,1762820044625,-1303.5259416,0.00017576,2]
[393582976,1762820045863,-2000.0,0.00017576,2]
[393582977,1762820047104,-2000.0,0.00017576,2]
[393582978,1762820048149,-2000.0,0.00017576,2]
[393582979,1762820049088,-2000.0,0.00017576,2]
[393582980,1762820050070,-2000.0,0.00017576,2]
[393582981,1762820051115,-2000.0,0.00017576,2]
[393582982,1762820067294,-157.40956415,0.00017553,2]
[393582983,1762820067319,-1842.59043585,0.00017576,2]
[393582984,1762820069200,-2000.0,0.00017576,2]
[393582985,1762820070717,-2000.0,0.00017576,2]
[393582986,1762820071946,-2000.0,0.00017576,2]
[393582987,1762820073165,-2000.0,0.00017576,2]
[393582988,1762820113654,252.0,0.00020895,120]
[393582989,1762820114966,252.0,0.0002194,120]
[393582990,1762820116306,252.0,0.00023037,120]
[393582991,1762820117596,252.0,0.00024189,120]
[393582992,1762820118884,252.0,0.00025398,120]
[393582993,1762820120215,252.0,0.00026668,120]
[393582994,1762820121502,252.0,0.00028002,120]
[393582995,1762820122856,252.0,0.00029402,120]
[393583149,1762820413054,168.0,0.00020982,120]
[393583150,1762820414598,168.0,0.00022031,120]
[393583151,1762820416047,168.0,0.00023133,120]
[393583154,1762820466024,-1000.0,0.00016876,2]
[393583155,1762820474444,-2751.0,0.00016996,2]
[393583156,1762820474468,-250.0,0.00017,2]
[393583160,1762820519994,257.87,8.668e-05,2]
[393583161,1762820520193,257.87,9.106e-05,2]
[393583162,1762820520465,257.87,9.545e-05,2]
[393583163,1762820520919,257.87,9.983e-05,2]
[393583164,1762820521038,257.87,0.00010421,2]
[393583165,1762820521285,257.87,0.0001086,2]
[393583166,1762820521543,257.87,0.00011298,2]
[393583167,1762820521765,257.87,0.00011736,2]
[393583168,1762820522136,257.87,0.00012175,2]
[393583169,1762820522377,257.87,0.00012613,2]
[393583170,1762820522605,257.87,0.00013051,2]
[393583171,1762820522825,257.87,0.0001349,2]
[393583172,1762820523030,257.87,0.00013928,2]
[393583173,1762820523305,257.87,0.00014366,2]
[393583174,1762820523578,257.87,0.00014805,2]
[393583189,1762820760011,6131.96,8e-05,2]
[393583190,1762820760039,2935.5541232,8e-05,2]
[393583191,1762820785381,-2000.0,0.0001501,2]
[393583192,1762820786471,-2000.0,0.0001501,2]
[393583193,1762820787548,-2000.0,0.0001501,2]
[393583194,1762820788662,-2000.0,0.0001501,2]
[393583195,1762820789626,-2000.0,0.0001501,2]
[393583196,1762820790527,-2000.0,0.0001501,2]
[393583197,1762820791498,-2000.0,0.0001501,2]
[393583198,1762820792426,-2000.0,0.0001501,2]
[393583200,1762820813284,5000.00073599,0.000162,5]
[393583201,1762820830046,205.0,9.8e-05,2]
[393583203,1762820861388,175.92,0.00013162,2]
[393583204,1762820875067,-185.92881665,0.00015,2]
[393583205,1762820875394,-7450.73139148,0.00015,2]
[393583206,1762820876739,-10000.01,0.00015,2]
[393583207,1762820876859,-10000.01,0.00015,2]
[393583208,1762820877119,-10000.01,0.00015,2]
[393583209,1762820877150,-10000.01,0.00015,2]
[393583210,1762820877244,-10000.01,0.00015,2]
[393583211,1762820877427,-10000.01,0.00015,2]
[393583212,1762820877532,-10000.01,0.00015,2]
[393583213,1762820877656,-10000.01,0.00015,2]
[393583214,1762820877908,-200.0,0.00015,2]
[393583215,1762820877996,-10000.01,0.00015,2]
[393583216,1762820879784,-10000.01,0.00015,2]
[393583217,1762820880174,-2579.45682543,0.00015,2]
[393583218,1762820883309,-314.06323891,0.00015,2]
[393583219,1762820885011,-245.32,0.00015,2]
[393583220,1762820887151,-157.27830987,0.00015,2]
[393583221,1762820888727,-166.66,0.00015,2]
[393583222,1762820891486,-165.24778131,0.00015,2]
[393583223,1762820893751,-195.0,0.00015,2]
[393583225,1762820895841,-152.87,0.00015,2]
[393583226,1762820897392,-179.03468423,0.00015,2]
[393583227,1762820917304,-300.0,0.00015,2]
[393583228,1762820919663,-300.0,0.00015,2]
[393583229,1762820925727,-230.06149772,0.00014999,2]
[393583230,1762820925751,-75.09397096,0.00015,2]
[393583231,1762820931656,-217.72040068,0.00015,2]
[393583232,1762820933408,-365.67096414,0.00015,2]
[393583233,1762820936113,-239.84119403,0.00015,2]
[393583234,1762820937705,-205.81,0.00015,2]
[393583235,1762820939955,-300.0,0.00015,2]
[393583236,1762820941546,-281.14038517,0.00015,2]
[393583237,1762820943544,504.83378329,0.00014973,2]
[393583238,1762820943746,-235.86870532,0.00015,2]
[393583239,1762820947638,198.58946569,0.00014973,2]
[393583240,1762820949061,-275.26402114,0.00015,2]
[393583241,1762820950368,4011.168927,7.945e-05,2]
[393583242,1762820951699,-224.3735111,0.00015,2]
[393583244,1762820954311,-5108.550272,0.00015,2]
[393583245,1762820954691,-165.0032782,0.00015,2]
[393583246,1762820957996,-185.93676109,0.00015,2]
[393583247,1762820960207,-186.28594916,0.00015,2]
[393583248,1762820964943,-300.0,0.00015,2]
[393583249,1762820967268,-207.24434178,0.00015,2]
[393583250,1762820970203,-375.97381027,0.00015,2]
[393583251,1762820972496,-196.97343739,0.00015,2]
[393583252,1762820974174,-194.58939095,0.00015,2]
[393583253,1762820990434,-298.79588033,0.00015,2]
[393583254,1762820993368,-205.55741743,0.00015,2]
[393583255,1762820996849,-253.03434629,0.00015,2]
[393583256,1762820999671,-299.11693874,0.00015,2]
[393583257,1762821003826,-300.0,0.00014999,2]
[393583258,1762821003859,-1200.0,0.00014999,2]
[393583259,1762821003891,-150.0,0.00014999,2]
[393583260,1762821004149,-393.53401348,0.00015,2]
[393583261,1762821007046,-415.72568523,0.00015,2]
[393583262,1762821008434,-253.02582709,0.00015,2]
[393583263,1762821010841,-200.0,0.00015,2]
[393583264,1762821013168,-182.27789715,0.00015,2]
[393583265,1762821016085,-195.00000016,0.00015,2]
[393583266,1762821018916,-154.03410336,0.00015,2]
[393583274,1762821031467,-250.0,0.00015,2]
[393583277,1762821031478,-2140.38278782,0.00015,2]
[393583278,1762821031490,-1297.0211627,0.00015,2]
[393583280,1762821031525,-3132.27733177,0.00015,2]
[393583281,1762821031537,-3133.03609757,0.00015,2]
[393583282,1762821031586,-13498.10318352,0.00015,2]
[393583283,1762821031595,-43457.13816817,0.00015,3]
[393583284,1762821031605,-9142.67328499,0.0001501,2]
[393583285,1762821031615,-257.87,0.00015243,2]
[393583286,1762821031625,-16546.19217351,0.000154,2]
[393583287,1762821031634,-329.23770299,0.00015462,2]
[393583288,1762821031644,-257.87,0.00015681,2]
[393583289,1762821031654,-257.87,0.0001612,2]
[393583290,1762821031664,-255.0,0.00016124,2]
[393583291,1762821031675,-420.0,0.00016416,2]
[393583292,1762821031684,-1680.0,0.00016499,2]
[393583293,1762821031694,-2324.38,0.00016535,2]
[393583294,1762821031704,-257.87,0.00016558,2]
[393583295,1762821031713,-200.0,0.00016621,2]
[393583296,1762821031724,-250.0,0.00016767,2]
[393583297,1762821031734,-195.0,0.00016767,2]
[393583298,1762821031743,-300.0,0.00016767,2]
[393583299,1762821031754,-257.87,0.00016996,2]
[393583300,1762821031764,-200.0,0.0001704,2]
[393583301,1762821031774,-174.0,0.00017314,2]
[393583302,1762821031783,-174.0,0.00017375,2]
[393583303,1762821031793,-4071.3943,0.00017476,2]
[393583304,1762821031803,-150.99,0.00017476,2]
[393583305,1762821031813,-2028.87,0.00017476,2]
[393583306,1762821031822,-1437.12862918,0.00017476,2]
[393583307,1762821031831,-157.40956415,0.00017476,2]
[393583308,1762821031841,-9251.77843325,0.00017476,2]
[393583309,1762821031851,-174.0,0.0001749,2]
[393583310,1762821031861,-174.0,0.00017491,2]
[393583311,1762821031872,-277.35679052,0.00017491,2]
[393583312,1762821031882,-151.0,0.00017565,2]
[393583313,1762821031892,-151.0,0.00017565,2]
[393583314,1762821031903,-151.0,0.00017565,2]
[393583315,1762821031912,-151.0,0.00017565,2]
[393583316,1762821031922,-151.0,0.00017565,2]
[393583317,1762821031931,-194.13182718,0.00017565,2]
[393583318,1762821031940,-322.6107,0.00017565,2]
[393583320,1762821031950,-500.0,0.00017573,2]
[393583321,1762821031959,-500.87217463,0.00017573,2]
[393583323,1762821031969,-294.51421773,0.00017573,2]
[393583325,1762821031981,-205.48578227,0.00017573,2]
[393583327,1762821031991,-500.0,0.00017575,2]
[393583329,1762821032000,-226.63618083,0.00017575,2]
[393583330,1762821032010,-150.0,0.00017575,2]
[393583331,1762821032020,-175.36838165,0.00017575,2]
[393583332,1762821032030,-150.0,0.00017575,2]
[393583333,1762821032039,-58790.79506249,0.00017576,2]
[393583334,1762821032051,-304.35354436,0.00017576,2]
[393583335,1762821032065,-2082.37526384,0.00017576,2]
[393583336,1762821032077,-776.28283243,0.00017576,2]
[393583337,1762821032088,-555.66208952,0.00017576,2]
[393583338,1762821032100,-7901.25000003,0.00017576,2]
[393583339,1762821032117,-3420.095732,0.00017576,2]
[393583340,1762821032128,-1104.82449094,0.00017576,2]
[393583341,1762821032143,-4754.8396003,0.00017576,2]
[393583342,1762821032157,-5082.70637473,0.00017576,2]
[393583343,1762821032168,-9689.09999375,0.00017576,2]
[393583344,1762821032183,-27176.66731777,0.00017576,2]
[393583454,1762821037398,-435.0150005,0.00017576,2]
[393583456,1762821037410,-544.38170658,0.00017576,2]
[393583461,1762821037462,-1026.9498,0.00017576,2]
[393583462,1762821037474,-14658.0739438,0.00017576,2]
[393583463,1762821037485,-1026.40959668,0.00017576,2]
[393583464,1762821037529,-18703.15457246,0.00017576,2]
[393583465,1762821037591,-6410.05130659,0.00017576,2]
[393583506,1762821039473,-14354.06786388,0.00017576,2]
[393583507,1762821039816,-396.42060508,0.00017576,2]
[393583508,1762821039830,-1175.2009716,0.00017576,2]
[393583509,1762821039841,-394.90989478,0.00017576,2]
[393583510,1762821039853,-58222.83698295,0.00017576,2]
[393583511,1762821039867,-1040.28765252,0.00017576,2]
[393583512,1762821039879,-256.640002,0.00017576,2]
[393583513,1762821039891,-325.929999,0.00017576,2]
[393583514,1762821039907,-10078.75992589,0.00017576,2]
[393583515,1762821040309,-1.7e-07,0.00017576,2]
[393583521,1762821042648,-5494.91052131,0.00017576,2]
[393583523,1762821042662,-870.7,0.00017576,2]
[393583524,1762821042675,-869.79170617,0.00017576,2]
[393583525,1762821042762,-19951.78422372,0.00017576,2]
[393583526,1762821042775,-483.09817918,0.00017576,2]
[393583527,1762821042786,-118495.55686553,0.00017576,2]
[393583528,1762821042795,-193.10975177,0.00017576,2]
[393583529,1762821042805,-174.0,0.00017602,2]
[393583530,1762821042815,-1000.0,0.00017673,2]
[393583531,1762821042960,-500.0,0.00017772,2]
[393583532,1762821042970,-500.0,0.00017772,2]
[393583533,1762821042979,-500.0,0.00017772,2]
[393583534,1762821042988,-174.0,0.0001788,2]
[393583535,1762821042998,-174.0,0.00017918,2]
[393583536,1762821043007,-174.0,0.00017934,2]
[393583537,1762821043016,-304.9308496,0.00017962,2]
[393583538,1762821043025,-174.0,0.00017963,2]
[393583539,1762821043035,-174.0,0.00017965,2]
[393583540,1762821043044,-587.0,0.00017966,2]
[393583541,1762821043054,-500.0,0.0001799,2]
[393583542,1762821043065,-317.82448395,0.0001799,2]
[393583543,1762821043075,-174.0,0.00017996,2]
[393583544,1762821043085,-174.0,0.00017999,2]
[393583545,1762821043094,-300.0,0.00017999,2]
[393583546,1762821043103,-6827.30540593,0.00018,2]
[393583555,1762821045845,-2073.65721855,0.00018,2]
[393583556,1762821046072,-8954.81793968,0.00018,2]
[393583557,1762821046138,-39311.62762556,0.00018,2]
[393583562,1762821102817,410.8349,0.00014999,2]
[393583563,1762821109604,-89.1651,0.00014999,2]
[393583564,1762821109633,-278.19810614,0.00014999,2]
[393583565,1762821109666,-500.0,0.00014999,2]
[393583566,1762821109699,-500.0,0.00014999,2]
[393583567,1762821109732,-500.0,0.00014999,2]
[393583568,1762821109765,-500.0,0.00014999,2]
[393583569,1762821109798,-500.0,0.00014999,2]
[393583570,1762821109830,-500.0,0.00014999,2]
[393583571,1762821109865,-500.0,0.00014999,2]
[393583572,1762821109896,-500.0,0.00014999,2]
[393583573,1762821109929,-500.0,0.00014999,2]
[393583574,1762821110095,-500.0,0.00014999,2]
[393583575,1762821110130,-500.0,0.00014999,2]
[393583576,1762821110163,-500.0,0.00014999,2]
[393583577,1762821110196,-500.0,0.00014999,2]
[393583578,1762821110228,-500.0,0.00014999,2]
[393583579,1762821110260,-500.0,0.00014999,2]
[393583580,1762821110292,-286.88887263,0.00014999,2]
[393583581,1762821139907,500.0,0.00014999,2]
[393583582,1762821139953,500.0,0.00014999,2]
[393583583,1762821139999,500.0,0.00014999,2]
[393583584,1762821140045,500.0,0.00014999,2]
[393583585,1762821140244,500.0,0.00014999,2]
[393583586,1762821140288,500.0,0.00014999,2]
[393583587,1762821140399,426.23225474,0.00014999,2]
[393583588,1762821140426,73.76774526,0.00014999,2]
[393583589,1762821140473,500.0,0.00014999,2]
[393583590,1762821140539,500.0,0.00014999,2]
[393583591,1762821140596,500.0,0.00014999,2]
[393583592,1762821140652,429.47379468,0.00014999,2]
[393583593,1762821140716,500.0,0.00014999,2]
[393583594,1762821140762,500.0,0.00014999,2]
[393583595,1762821140807,500.0,0.00014999,2]
[393583596,1762821140866,500.0,0.00014999,2]
[393583598,1762821353136,157.0,0.000301,120]
[393583599,1762821355042,157.0,0.000301,120]
[393583601,1762821425445,-157.0,0.00015,2]
[393583602,1762821425473,-50.3718805,0.00015,2]
[393583607,1762821632607,160.53458461,0.0001707,14]
[393583609,1762821988399,150.0,0.00016731,120]
[393583624,1762822231613,-106.6281195,0.00015,2]
[393583625,1762822231623,-1200.0,0.00016498,2]
[393583626,1762822231632,-500.38950216,0.00016499,2]
[393583627,1762822231644,-699.61049784,0.00016499,2]
[393583628,1762822231653,-300.0,0.00016499,2]
[393583629,1762822231663,-1547.72400216,0.000165,2]
[393583630,1762822231674,-284.21108294,0.000165,2]
[393583631,1762822231690,-668.0649149,0.000165,2]
[393583632,1762822231699,-250.0,0.000165,2]
[393583633,1762822231709,-195.0,0.000165,2]
[393583634,1762822231718,-150.0,0.00016731,2]
[393583635,1762822231727,-300.0,0.00016784,2]
[393583636,1762822231737,-1738.21,0.00016785,2]
[393583637,1762822231747,-250.0,0.0001688,2]
[393583638,1762822231756,-250.0,0.00017,2]
[393583639,1762822231766,-168.0,0.00017229,2]
[393583640,1762822231779,-410.28585585,0.00017273,2]
[393583641,1762822231789,-550.0,0.00017275,2]
[393583642,1762822231798,-380.91862925,0.00017276,2]
[393583643,1762822231810,-1586.51717075,0.00017276,2]
[393583644,1762822231820,-10526.62809053,0.00017276,2]
[393583645,1762822231829,-500.0,0.00017363,2]
[393583646,1762822231839,-577.54570092,0.00017363,2]
[393583647,1762822231849,-500.0,0.00017363,2]
[393583648,1762822231858,-211.06823477,0.00017363,2]
[393583649,1762822231867,-500.0,0.00017363,2]
[393583650,1762822231877,-500.0,0.00017363,2]
[393583651,1762822231886,-500.0,0.00017363,2]
[393583652,1762822231895,-500.0,0.00017363,2]
[393583653,1762822231908,-500.0,0.00017363,2]
[393583654,1762822231919,-500.0,0.00017363,2]
[393583655,1762822231928,-500.0,0.00017363,2]
[393583656,1762822231938,-500.0,0.00017363,2]
[393583657,1762822231947,-500.0,0.00017363,2]
[393583658,1762822231957,-500.0,0.00017363,2]
[393583659,1762822231966,-500.0,0.00017363,2]
[393583660,1762822231976,-500.0,0.00017363,2]
[393583661,1762822231986,-500.0,0.00017363,2]
[393583662,1762822231995,-500.0,0.00017363,2]
[393583663,1762822232005,-500.0,0.00017363,2]
[393583664,1762822232014,-500.0,0.00017363,2]
[393583665,1762822232024,-500.0,0.00017363,2]
[393583666,1762822232034,-500.0,0.00017363,2]
[393583667,1762822232044,-500.0,0.00017363,2]
[393583668,1762822232053,-474.21949625,0.00017363,2]
[393583669,1762822232063,-190.19737243,0.00017363,2]
[393583670,1762822232073,-500.0,0.00017363,2]
[393583671,1762822232084,-500.0,0.00017363,2]
[393583673,1762822232094,-500.0,0.00017363,2]
[393583676,1762822232104,-500.0,0.00017363,2]
[393583679,1762822232114,-500.0,0.00017363,2]
[393583682,1762822232124,-500.0,0.00017363,2]
[393583685,1762822232135,-500.0,0.00017363,2]
[393583687,1762822232145,-500.0,0.00017363,2]
[393583689,1762822232155,-500.0,0.00017363,2]
[393583691,1762822232165,-500.0,0.00017363,2]
[393583693,1762822232175,-151.0,0.00017365,2]
[393583695,1762822232184,-151.0,0.00017365,2]
[393583697,1762822232194,-151.0,0.00017365,2]
[393583698,1762822232203,-151.0,0.00017365,2]
[393583699,1762822232212,-200.0,0.00017365,2]
[393583700,1762822232223,-151.0,0.00017365,2]
[393583701,1762822232232,-151.0,0.00017365,2]
[393583702,1762822232241,-151.0,0.00017365,2]
[393583703,1762822232251,-151.0,0.00017365,2]
[393583704,1762822232260,-151.0,0.00017365,2]
[393583705,1762822232270,-151.0,0.00017365,2]
[393583706,1762822232283,-151.0,0.00017365,2]
[393583707,1762822232292,-151.0,0.00017365,2]
[393583708,1762822232302,-151.0,0.00017365,2]
[393583709,1762822232312,-151.0,0.00017365,2]
[393583710,1762822232321,-151.0,0.00017365,2]
[393583711,1762822232331,-151.0,0.00017365,2]
[393583712,1762822232342,-151.0,0.00017365,2]
[393583713,1762822232351,-151.0,0.00017365,2]
[393583714,1762822232361,-151.0,0.00017365,2]
[393583715,1762822232370,-151.0,0.00017365,2]
[393583716,1762822232379,-151.0,0.00017365,2]
[393583717,1762822232389,-151.0,0.00017365,2]
[393583718,1762822232399,-151.0,0.00017365,2]
[393583719,1762822232408,-1186.13,0.00017366,2]
[393583720,1762822232417,-1186.13,0.00017366,2]
[393583721,1762822232428,-1186.13,0.00017366,2]
[393583722,1762822232438,-2964.842,0.00017366,2]
[393583723,1762822232448,-500.0,0.00017373,2]
[393583724,1762822232458,-438.49199624,0.00017373,2]
[393583725,1762822232467,-500.0,0.00017373,2]
[393583726,1762822232478,-500.0,0.00017373,2]
[393583727,1762822232487,-182.53,0.00017374,2]
[393583728,1762822232496,-310.38737717,0.00017375,2]
[393583729,1762822232505,-500.0,0.00017375,2]